fUSD/lending_fUSD_20250113
["ID","MTS","AMOUNT","RATE_DAILY","PERIOD"]
[348812961,1736790663043,-500.0,0.00011914,2]
[348812962,1736790663053,-1491.1,0.00011914,2]
[348812963,1736790663063,-500.0,0.00011914,2]
[348812964,1736790663073,-609.17,0.00011914,2]
[348812965,1736790663082,-500.0,0.00011914,2]
[348812966,1736790663092,-500.0,0.00011914,2]
[348812967,1736790663102,-612.5,0.00011914,2]
[348812968,1736790663112,-500.0,0.00011914,2]
[348812969,1736790663122,-500.0,0.00011914,2]
[348812970,1736790663132,-500.0,0.00011914,2]
[348812971,1736790663142,-934.89,0.00011914,2]
[348812972,1736790663151,-500.0,0.00011914,2]
[348812973,1736790663161,-500.0,0.00011915,2]
[348812974,1736790663170,-500.0,0.00011915,2]
[348812975,1736790663179,-500.0,0.00011915,2]
[348812976,1736790663189,-500.0,0.00011915,2]
[348812977,1736790663199,-500.0,0.00011915,2]
[348812978,1736790663209,-735.87,0.00011915,2]
[348812979,1736790663219,-2437.41,0.00011915,2]
[348812980,1736790663228,-1171.68,0.00011915,2]
[348812981,1736790663242,-500.0,0.00011915,2]
[348812982,1736790663252,-808.21,0.00011915,2]
[348812983,1736790663261,-500.0,0.00011915,2]
[348812984,1736790663270,-500.0,0.00011915,2]
[348812985,1736790663281,-514.19,0.00011915,2]
[348812986,1736790663290,-500.0,0.00011915,2]
[348812987,1736790663300,-758.91,0.00011915,2]
[348812988,1736790663310,-708.49,0.00011915,2]
[348812989,1736790663320,-500.0,0.00011915,2]
[348812990,1736790663330,-500.0,0.00011915,2]
[348812991,1736790663340,-500.0,0.00011915,2]
[348812992,1736790663349,-500.0,0.00011915,2]
[348812993,1736790663362,-200.0,0.00012055,2]
[348812994,1736790663371,-222678.0,0.000121,2]
[348812995,1736790663381,-174.49417443,0.0001211,2]
[348812996,1736790663391,-152.52,0.00012141,2]
[348812997,1736790663400,-243.36,0.00012168,2]
[348812998,1736790663410,-773.16,0.00012186,2]
[348812999,1736790663420,-1601.98,0.00012186,2]
[348813000,1736790663429,-2833.89,0.00012186,2]
[348813001,1736790663439,-629.38,0.00012186,2]
[348813002,1736790663450,-1459.66,0.00012186,2]
[348813003,1736790663461,-785.35,0.00012186,2]
[348813004,1736790663471,-1359.03,0.00012186,2]
[348813005,1736790663481,-1434.31,0.00012186,2]
[348813006,1736790663491,-527.23,0.00012187,2]
[348813007,1736790663501,-500.0,0.00012187,2]
[348813008,1736790663510,-500.0,0.00012187,2]
[348813009,1736790663520,-986.41,0.00012187,2]
[348813010,1736790663530,-500.0,0.00012187,2]
[348813011,1736790663540,-551.99,0.00012187,2]
[348813012,1736790663550,-1206.57,0.00012187,2]
[348813013,1736790663560,-500.0,0.00012187,2]
[348813014,1736790663570,-945.57,0.00012187,2]
[348813015,1736790663580,-3302.26,0.00012187,2]
[348813016,1736790663590,-1442.3,0.00012187,2]
[348813017,1736790663599,-500.0,0.00012187,2]
[348813018,1736790663610,-774.65,0.00012187,2]
[348813019,1736790663620,-510.31,0.00012187,2]
[348813020,1736790663632,-779.56,0.00012187,2]
[348813021,1736790663642,-1192.6,0.00012187,2]
[348813022,1736790663651,-572.87,0.00012187,2]
[348813023,1736790663661,-366.986236,0.00012187,2]
[348813024,1736790663671,-1791.6,0.00012187,2]
[348813025,1736790663680,-2062.22,0.00012187,2]
[348813026,1736790663690,-838.56,0.00012187,2]
[348813027,1736790663699,-451.277377,0.00012187,2]
[348813028,1736790663710,-778.31,0.00012187,2]
[348813029,1736790663720,-583.56,0.00012187,2]
[348813030,1736790663730,-1703.85,0.00012187,2]
[348813031,1736790663740,-2107.76,0.00012187,2]
[348813032,1736790663751,-500.0,0.00012187,2]
[348813033,1736790663760,-150.328638,0.00012187,2]
[348813034,1736790663770,-829.34,0.00012187,2]
[348813035,1736790663780,-880.8,0.00012187,2]
[348813036,1736790663790,-513.74,0.00012187,2]
[348813037,1736790663799,-500.0,0.00012187,2]
[348813038,1736790663809,-858.44,0.00012187,2]
[348813039,1736790663818,-500.0,0.00012187,2]
[348813040,1736790663828,-1887.0,0.00012188,2]
[348813041,1736790663838,-786.47,0.00012188,2]
[348813042,1736790663847,-500.0,0.00012188,2]
[348813043,1736790663857,-500.0,0.00012188,2]
[348813044,1736790663867,-500.0,0.00012188,2]
[348813045,1736790663877,-500.0,0.00012188,2]
[348813046,1736790663887,-581.5,0.00012188,2]
[348813047,1736790663896,-570.71705406,0.00012188,2]
[348813048,1736790663906,-643.13811242,0.00012188,2]
[348813049,1736790663916,-500.0,0.00012188,2]
[348813050,1736790663926,-500.0,0.00012188,2]
[348813051,1736790663935,-500.0,0.00012188,2]
[348813052,1736790663945,-500.0,0.00012188,2]
[348813053,1736790663955,-500.0,0.00012188,2]
[348813054,1736790663967,-500.0,0.00012188,2]
[348813055,1736790663976,-500.0,0.00012188,2]
[348813056,1736790663986,-500.0,0.00012188,2]
[348813057,1736790663996,-500.0,0.00012188,2]
[348813058,1736790664005,-500.0,0.00012188,2]
[348813059,1736790664016,-500.0,0.00012188,2]
[348813060,1736790664025,-500.0,0.00012188,2]
[348813061,1736790664035,-500.0,0.00012188,2]
[348813062,1736790664045,-500.0,0.00012188,2]
[348813063,1736790664055,-500.0,0.00012188,2]
[348813064,1736790664065,-500.0,0.00012188,2]
[348813065,1736790664074,-538.76,0.00012188,2]
[348813066,1736790664084,-500.0,0.00012188,2]
[348813067,1736790664094,-500.0,0.00012188,2]
[348813068,1736790664104,-500.0,0.00012188,2]
[348813069,1736790664114,-500.0,0.00012188,2]
[348813070,1736790664124,-500.0,0.00012188,2]
[348813071,1736790664133,-500.0,0.00012188,2]
[348813072,1736790664143,-500.0,0.00012188,2]
[348813073,1736790664152,-500.0,0.00012188,2]
[348813074,1736790664161,-500.0,0.00012188,2]
[348813075,1736790664170,-500.0,0.00012188,2]
[348813076,1736790664180,-500.0,0.00012188,2]
[348813077,1736790664189,-500.0,0.00012188,2]
[348813078,1736790664199,-500.0,0.00012188,2]
[348813079,1736790664211,-779.56,0.00012188,2]
[348813080,1736790664221,-500.0,0.00012188,2]
[348813081,1736790664231,-500.0,0.00012188,2]
[348813082,1736790664241,-500.0,0.00012188,2]
[348813083,1736790664250,-558.25,0.00012188,2]
[348813084,1736790664260,-500.0,0.00012188,2]
[348813085,1736790664270,-500.0,0.00012188,2]
[348813086,1736790664280,-459.22923546,0.00012188,2]
[348813087,1736790664290,-2308.5,0.00012188,2]
[348813088,1736790664300,-1383.5,0.00012188,2]
[348813089,1736790664310,-500.0,0.00012188,2]
[348813090,1736790664320,-896.29,0.00012188,2]
[348813091,1736790664330,-754.44,0.00012188,2]
[348813092,1736790664339,-1927.12,0.00012188,2]
[348813093,1736790664349,-500.0,0.00012188,2]
[348813094,1736790664359,-500.0,0.00012188,2]
[348813095,1736790664369,-589.82,0.00012188,2]
[348813096,1736790664378,-1283.59,0.00012188,2]
[348813097,1736790664388,-1771.6,0.00012188,2]
[348813098,1736790664398,-500.0,0.00012188,2]
[348813099,1736790664408,-500.0,0.00012188,2]
[348813100,1736790664418,-1491.1,0.00012188,2]
[348813101,1736790664427,-500.0,0.00012188,2]
[348813102,1736790664437,-609.17,0.00012188,2]
[348813103,1736790664447,-500.0,0.00012188,2]
[348813104,1736790664456,-500.0,0.00012188,2]
[348813105,1736790664467,-612.5,0.00012188,2]
[348813106,1736790664476,-500.0,0.00012188,2]
[348813107,1736790664488,-500.0,0.00012188,2]
[348813108,1736790664498,-500.0,0.00012188,2]
[348813109,1736790664507,-934.89,0.00012188,2]
[348813110,1736790664516,-500.0,0.00012188,2]
[348813111,1736790664526,-500.0,0.00012189,2]
[348813112,1736790664535,-500.0,0.00012189,2]
[348813113,1736790664544,-500.0,0.00012189,2]
[348813114,1736790664553,-500.0,0.00012189,2]
[348813115,1736790664562,-500.0,0.00012189,2]
[348813116,1736790664572,-735.87,0.00012189,2]
[348813117,1736790664580,-2437.41,0.00012189,2]
[348813118,1736790664591,-1171.68,0.00012189,2]
[348813119,1736790664601,-500.0,0.00012189,2]
[348813120,1736790664610,-808.21,0.00012189,2]
[348813121,1736790664621,-500.0,0.00012189,2]
[348813122,1736790664633,-500.0,0.00012189,2]
[348813123,1736790664643,-514.19,0.00012189,2]
[348813124,1736790664652,-500.0,0.00012189,2]
[348813125,1736790664662,-758.91,0.00012189,2]
[348813126,1736790664673,-708.49,0.00012189,2]
[348813127,1736790664683,-500.0,0.00012189,2]
[348813128,1736790664693,-500.0,0.00012189,2]
[348813129,1736790664703,-500.0,0.00012189,2]
[348813130,1736790664716,-500.0,0.00012189,2]
[348813131,1736790664726,-414.81126,0.00012329,2]
[348813132,1736790664735,-414.81126,0.00012329,2]
[348813133,1736790664745,-3327.943,0.00012436,2]
[348813134,1736790664754,-217.028,0.00012436,2]
[348813135,1736790664764,-773.16,0.0001246,2]
[348813136,1736790664773,-1601.98,0.0001246,2]
[348813137,1736790664782,-2833.89,0.0001246,2]
[348813138,1736790664792,-629.38,0.0001246,2]
[348813139,1736790664801,-1459.66,0.0001246,2]
[348813140,1736790664811,-785.35,0.0001246,2]
[348813141,1736790664820,-1359.03,0.0001246,2]
[348813142,1736790664830,-1434.31,0.0001246,2]
[348813143,1736790664840,-527.23,0.00012461,2]
[348813144,1736790664850,-500.0,0.00012461,2]
[348813145,1736790664860,-500.0,0.00012461,2]
[348813146,1736790664870,-986.41,0.00012461,2]
[348813147,1736790664879,-500.0,0.00012461,2]
[348813148,1736790664889,-551.99,0.00012461,2]
[348813149,1736790664899,-1206.57,0.00012461,2]
[348813150,1736790664908,-500.0,0.00012461,2]
[348813151,1736790664918,-945.57,0.00012461,2]
[348813152,1736790664928,-3302.26,0.00012461,2]
[348813153,1736790664938,-1442.3,0.00012461,2]
[348813154,1736790664948,-500.0,0.00012461,2]
[348813155,1736790664958,-774.65,0.00012461,2]
[348813156,1736790664970,-510.31,0.00012461,2]
[348813157,1736790664980,-779.56,0.00012461,2]
[348813158,1736790665140,-1192.6,0.00012461,2]
[348813159,1736790665153,-572.87,0.00012461,2]
[348813160,1736790665163,-366.986236,0.00012461,2]
[348813161,1736790665174,-1791.6,0.00012461,2]
[348813162,1736790665185,-2062.22,0.00012461,2]
[348813163,1736790665195,-838.56,0.00012461,2]
[348813164,1736790665206,-778.31,0.00012461,2]
[348813165,1736790665218,-451.277377,0.00012461,2]
[348813166,1736790665228,-583.56,0.00012461,2]
[348813167,1736790665237,-1703.85,0.00012461,2]
[348813168,1736790665247,-2107.76,0.00012461,2]
[348813169,1736790665258,-500.0,0.00012461,2]
[348813170,1736790665268,-829.34,0.00012461,2]
[348813171,1736790665277,-880.8,0.00012461,2]
[348813172,1736790665287,-513.74,0.00012461,2]
[348813173,1736790665297,-500.0,0.00012461,2]
[348813174,1736790665306,-858.44,0.00012461,2]
[348813175,1736790665316,-500.0,0.00012461,2]
[348813176,1736790665325,-786.47,0.00012462,2]
[348813177,1736790665334,-500.0,0.00012462,2]
[348813178,1736790665344,-500.0,0.00012462,2]
[348813179,1736790665353,-500.0,0.00012462,2]
[348813180,1736790665362,-500.0,0.00012462,2]
[348813181,1736790665372,-581.5,0.00012462,2]
[348813182,1736790665381,-500.0,0.00012462,2]
[348813183,1736790665390,-500.0,0.00012462,2]
[348813184,1736790665400,-500.0,0.00012462,2]
[348813185,1736790665411,-500.0,0.00012462,2]
[348813186,1736790665422,-500.0,0.00012462,2]
[348813187,1736790665432,-500.0,0.00012462,2]
[348813188,1736790665444,-500.0,0.00012462,2]
[348813189,1736790665453,-500.0,0.00012462,2]
[348813190,1736790665465,-500.0,0.00012462,2]
[348813191,1736790665474,-500.0,0.00012462,2]
[348813192,1736790665484,-500.0,0.00012462,2]
[348813193,1736790665494,-500.0,0.00012462,2]
[348813194,1736790665503,-500.0,0.00012462,2]
[348813195,1736790665512,-500.0,0.00012462,2]
[348813196,1736790665522,-500.0,0.00012462,2]
[348813197,1736790665532,-500.0,0.00012462,2]
[348813198,1736790665541,-538.76,0.00012462,2]
[348813199,1736790665551,-500.0,0.00012462,2]
[348813200,1736790665561,-500.0,0.00012462,2]
[348813201,1736790665571,-500.0,0.00012462,2]
[348813202,1736790665580,-500.0,0.00012462,2]
[348813203,1736790665590,-500.0,0.00012462,2]
[348813204,1736790665600,-500.0,0.00012462,2]
[348813205,1736790665610,-500.0,0.00012462,2]
[348813206,1736790665620,-500.0,0.00012462,2]
[348813207,1736790665632,-500.0,0.00012462,2]
[348813208,1736790665641,-500.0,0.00012462,2]
[348813209,1736790665651,-500.0,0.00012462,2]
[348813210,1736790665661,-500.0,0.00012462,2]
[348813211,1736790665672,-500.0,0.00012462,2]
[348813212,1736790665682,-779.56,0.00012462,2]
[348813213,1736790665691,-500.0,0.00012462,2]
[348813214,1736790665701,-500.0,0.00012462,2]
[348813215,1736790665713,-500.0,0.00012462,2]
[348813216,1736790665722,-558.25,0.00012462,2]
[348813217,1736790665731,-500.0,0.00012462,2]
[348813218,1736790665741,-500.0,0.00012462,2]
[348813219,1736790665750,-2308.5,0.00012462,2]
[348813220,1736790665760,-1383.5,0.00012462,2]
[348813221,1736790665769,-500.0,0.00012462,2]
[348813222,1736790665779,-896.29,0.00012462,2]
[348813223,1736790665788,-754.44,0.00012462,2]
[348813224,1736790665798,-1927.12,0.00012462,2]
[348813225,1736790665807,-500.0,0.00012462,2]
[348813226,1736790665817,-500.0,0.00012462,2]
[348813227,1736790665826,-589.82,0.00012462,2]
[348813228,1736790665836,-1283.59,0.00012462,2]
[348813229,1736790665845,-1771.6,0.00012462,2]
[348813230,1736790665854,-203.43874858,0.00012462,2]
[348813231,1736790665863,-500.0,0.00012462,2]
[348813232,1736790665873,-1491.1,0.00012462,2]
[348813233,1736790665882,-500.0,0.00012462,2]
[348813234,1736790665892,-609.17,0.00012462,2]
[348813235,1736790665901,-500.0,0.00012462,2]
[348813236,1736790665911,-500.0,0.00012462,2]
[348813237,1736790665920,-612.5,0.00012462,2]
[348813238,1736790665930,-500.0,0.00012462,2]
[348813239,1736790665939,-360.08601416,0.00012462,2]
[348813240,1736790665950,-500.0,0.00012462,2]
[348813241,1736790665959,-934.89,0.00012462,2]
[348813242,1736790665970,-500.0,0.00012462,2]
[348813243,1736790665979,-500.0,0.00012463,2]
[348813244,1736790665989,-500.0,0.00012463,2]
[348813245,1736790665998,-500.0,0.00012463,2]
[348813246,1736790666007,-500.0,0.00012463,2]
[348813247,1736790666017,-500.0,0.00012463,2]
[348813248,1736790666026,-735.87,0.00012463,2]
[348813249,1736790666035,-2437.41,0.00012463,2]
[348813250,1736790666045,-1171.68,0.00012463,2]
[348813251,1736790666053,-500.0,0.00012463,2]
[348813252,1736790666063,-808.21,0.00012463,2]
[348813253,1736790666072,-500.0,0.00012463,2]
[348813254,1736790666081,-500.0,0.00012463,2]
[348813255,1736790666090,-514.19,0.00012463,2]
[348813256,1736790666099,-500.0,0.00012463,2]
[348813257,1736790666109,-758.91,0.00012463,2]
[348813258,1736790666119,-708.49,0.00012463,2]
[348813259,1736790666128,-500.0,0.00012463,2]
[348813260,1736790666140,-500.0,0.00012463,2]
[348813261,1736790666150,-1000.0,0.00012538,2]
[348813262,1736790666159,-5556.0,0.000126,3]
[348813263,1736790666169,-171.5898713,0.00012636,2]
[348813264,1736790666178,-2016.0,0.00012723,2]
[348813265,1736790666187,-1268.0,0.00012723,2]
[348813266,1736790666196,-635.0,0.00012723,2]
[348813267,1736790666206,-150.0,0.00012723,2]
[348813268,1736790666220,-566.0,0.00012723,2]
[348813269,1736790666229,-1861.0,0.00012723,2]
[348813270,1736790666239,-820.0,0.00012723,2]
[348813271,1736790666249,-907.0,0.00012723,2]
[348813272,1736790666258,-1259.0,0.00012723,2]
[348813273,1736790666268,-2944.0,0.00012723,2]
[348813274,1736790666277,-3979.0,0.00012723,2]
[348813275,1736790666287,-537.0,0.00012723,2]
[348813276,1736790666296,-3897.0,0.00012723,2]
[348813277,1736790666305,-150.0,0.00012723,2]
[348813278,1736790666314,-9629.0,0.00012723,2]
[348813279,1736790666323,-1167.0,0.00012723,2]
[348813280,1736790666333,-646.17,0.00012723,2]
[348813281,1736790666342,-773.16,0.00012734,2]
[348813282,1736790666351,-1601.98,0.00012734,2]
[348813283,1736790666360,-2833.89,0.00012734,2]
[348813284,1736790666371,-629.38,0.00012734,2]
[348813285,1736790666381,-1459.66,0.00012734,2]
[348813286,1736790666392,-785.35,0.00012734,2]
[348813287,1736790666402,-1359.03,0.00012734,2]
[348813288,1736790666412,-1434.31,0.00012734,2]
[348813289,1736790666422,-527.23,0.00012735,2]
[348813290,1736790666432,-500.0,0.00012735,2]
[348813291,1736790666442,-500.0,0.00012735,2]
[348813292,1736790666452,-986.41,0.00012735,2]
[348813293,1736790666466,-500.0,0.00012735,2]
[348813294,1736790666476,-551.99,0.00012735,2]
[348813295,1736790666486,-1206.57,0.00012735,2]
[348813296,1736790666497,-500.0,0.00012735,2]
[348813297,1736790666507,-945.57,0.00012735,2]
[348813298,1736790666517,-3302.26,0.00012735,2]
[348813299,1736790666526,-1442.3,0.00012735,2]
[348813300,1736790666535,-500.0,0.00012735,2]
[348813301,1736790666545,-774.65,0.00012735,2]
[348813302,1736790666554,-510.31,0.00012735,2]
[348813303,1736790666564,-779.56,0.00012735,2]
[348813304,1736790666573,-1192.6,0.00012735,2]
[348813305,1736790666583,-572.87,0.00012735,2]
[348813306,1736790666593,-366.986236,0.00012735,2]
[348813307,1736790666603,-1791.6,0.00012735,2]
[348813308,1736790666614,-2062.22,0.00012735,2]
[348813309,1736790666624,-838.56,0.00012735,2]
[348813310,1736790666636,-778.31,0.00012735,2]
[348813311,1736790666645,-583.56,0.00012735,2]
[348813312,1736790666655,-451.277377,0.00012735,2]
[348813313,1736790666665,-1703.85,0.00012735,2]
[348813314,1736790666674,-2107.76,0.00012735,2]
[348813315,1736790666684,-500.0,0.00012735,2]
[348813316,1736790666694,-829.34,0.00012735,2]
[348813317,1736790666703,-880.8,0.00012735,2]
[348813318,1736790666718,-513.74,0.00012735,2]
[348813319,1736790666727,-161.287929,0.00012735,2]
[348813320,1736790666736,-500.0,0.00012735,2]
[348813321,1736790666746,-858.44,0.00012735,2]
[348813322,1736790666755,-500.0,0.00012735,2]
[348813323,1736790666764,-786.47,0.00012736,2]
[348813324,1736790666773,-407.93784831,0.00012736,2]
[348813325,1736790666782,-500.0,0.00012736,2]
[348813326,1736790666792,-500.0,0.00012736,2]
[348813327,1736790666801,-500.0,0.00012736,2]
[348813328,1736790666810,-581.5,0.00012736,2]
[348813329,1736790666820,-500.0,0.00012736,2]
[348813330,1736790666828,-500.0,0.00012736,2]
[348813331,1736790666838,-500.0,0.00012736,2]
[348813332,1736790666850,-500.0,0.00012736,2]
[348813333,1736790666859,-500.0,0.00012736,2]
[348813334,1736790666869,-500.0,0.00012736,2]
[348813335,1736790666878,-500.0,0.00012736,2]
[348813336,1736790666887,-500.0,0.00012736,2]
[348813337,1736790666896,-500.0,0.00012736,2]
[348813338,1736790666906,-500.0,0.00012736,2]
[348813339,1736790666915,-500.0,0.00012736,2]
[348813340,1736790666925,-500.0,0.00012736,2]
[348813341,1736790666934,-500.0,0.00012736,2]
[348813342,1736790666943,-223.08772889,0.00012736,2]
[348813343,1736790666952,-500.0,0.00012736,2]
[348813344,1736790666963,-500.0,0.00012736,2]
[348813345,1736790666973,-538.76,0.00012736,2]
[348813346,1736790666982,-500.0,0.00012736,2]
[348813347,1736790666992,-500.0,0.00012736,2]
[348813348,1736790667001,-500.0,0.00012736,2]
[348813349,1736790667011,-500.0,0.00012736,2]
[348813350,1736790667020,-500.0,0.00012736,2]
[348813351,1736790667029,-500.0,0.00012736,2]
[348813352,1736790667038,-500.0,0.00012736,2]
[348813353,1736790667047,-500.0,0.00012736,2]
[348813354,1736790667056,-500.0,0.00012736,2]
[348813355,1736790667065,-500.0,0.00012736,2]
[348813356,1736790667074,-500.0,0.00012736,2]
[348813357,1736790667084,-500.0,0.00012736,2]
[348813358,1736790667093,-500.0,0.00012736,2]
[348813359,1736790667102,-779.56,0.00012736,2]
[348813360,1736790667111,-500.0,0.00012736,2]
[348813361,1736790667120,-500.0,0.00012736,2]
[348813362,1736790667129,-500.0,0.00012736,2]
[348813363,1736790667138,-558.25,0.00012736,2]
[348813364,1736790667147,-500.0,0.00012736,2]
[348813365,1736790667157,-500.0,0.00012736,2]
[348813366,1736790667166,-2308.5,0.00012736,2]
[348813367,1736790667175,-1383.5,0.00012736,2]
[348813368,1736790667184,-500.0,0.00012736,2]
[348813369,1736790667193,-896.29,0.00012736,2]
[348813370,1736790667204,-754.44,0.00012736,2]
[348813371,1736790667216,-1927.12,0.00012736,2]
[348813372,1736790667225,-500.0,0.00012736,2]
[348813373,1736790667235,-500.0,0.00012736,2]
[348813374,1736790667244,-589.82,0.00012736,2]
[348813375,1736790667253,-1283.59,0.00012736,2]
[348813376,1736790667263,-1771.6,0.00012736,2]
[348813377,1736790667272,-500.0,0.00012736,2]
[348813378,1736790667282,-1491.1,0.00012736,2]
[348813379,1736790667292,-500.0,0.00012736,2]
[348813380,1736790667303,-609.17,0.00012736,2]
[348813381,1736790667312,-500.0,0.00012736,2]
[348813382,1736790667323,-612.5,0.00012736,2]
[348813383,1736790667334,-500.0,0.00012736,2]
[348813384,1736790667344,-500.0,0.00012736,2]
[348813385,1736790667355,-934.89,0.00012736,2]
[348813386,1736790667367,-500.0,0.00012736,2]
[348813387,1736790667376,-500.0,0.00012737,2]
[348813388,1736790667385,-500.0,0.00012737,2]
[348813389,1736790667394,-500.0,0.00012737,2]
[348813390,1736790667403,-500.0,0.00012737,2]
[348813391,1736790667412,-500.0,0.00012737,2]
[348813392,1736790667422,-735.87,0.00012737,2]
[348813393,1736790667432,-2437.41,0.00012737,2]
[348813394,1736790667442,-1171.68,0.00012737,2]
[348813395,1736790667451,-500.0,0.00012737,2]
[348813396,1736790667462,-808.21,0.00012737,2]
[348813397,1736790667471,-500.0,0.00012737,2]
[348813398,1736790667482,-500.0,0.00012737,2]
[348813399,1736790667491,-514.19,0.00012737,2]
[348813400,1736790667500,-500.0,0.00012737,2]
[348813401,1736790667510,-758.91,0.00012737,2]
[348813402,1736790667521,-708.49,0.00012737,2]
[348813403,1736790667532,-500.0,0.00012737,2]
[348813404,1736790667542,-500.0,0.00012737,2]
[348813405,1736790667552,-500.0,0.00012876,2]
[348813406,1736790667563,-1000.0,0.000129,20]
[348813407,1736790667572,-773.16,0.00013008,2]
[348813408,1736790667582,-1601.98,0.00013008,2]
[348813409,1736790667591,-2833.89,0.00013008,2]
[348813410,1736790667602,-629.38,0.00013008,2]
[348813411,1736790667612,-1459.66,0.00013008,2]
[348813412,1736790667623,-785.35,0.00013008,2]
[348813413,1736790667635,-1359.03,0.00013008,2]
[348813414,1736790667645,-1434.31,0.00013008,2]
[348813415,1736790667655,-527.23,0.00013009,2]
[348813416,1736790667665,-500.0,0.00013009,2]
[348813417,1736790667674,-500.0,0.00013009,2]
[348813418,1736790667684,-986.41,0.00013009,2]
[348813419,1736790667694,-500.0,0.00013009,2]
[348813420,1736790667703,-551.99,0.00013009,2]
[348813421,1736790667714,-1206.57,0.00013009,2]
[348813422,1736790667724,-500.0,0.00013009,2]
[348813423,1736790667734,-945.57,0.00013009,2]
[348813424,1736790667744,-3302.26,0.00013009,2]
[348813425,1736790667754,-1442.3,0.00013009,2]
[348813426,1736790667764,-500.0,0.00013009,2]
[348813427,1736790667775,-774.65,0.00013009,2]
[348813428,1736790667787,-510.31,0.00013009,2]
[348813429,1736790667797,-779.56,0.00013009,2]
[348813430,1736790667807,-1192.6,0.00013009,2]
[348813431,1736790667817,-572.87,0.00013009,2]
[348813432,1736790667827,-366.986236,0.00013009,2]
[348813433,1736790667837,-1791.6,0.00013009,2]
[348813434,1736790667847,-2062.22,0.00013009,2]
[348813435,1736790667858,-838.56,0.00013009,2]
[348813436,1736790667870,-778.31,0.00013009,2]
[348813437,1736790667880,-451.277377,0.00013009,2]
[348813438,1736790667890,-583.56,0.00013009,2]
[348813439,1736790667902,-1703.85,0.00013009,2]
[348813440,1736790667913,-2107.76,0.00013009,2]
[348813441,1736790667924,-150.328638,0.00013009,2]
[348813442,1736790667934,-829.34,0.00013009,2]
[348813443,1736790667946,-500.0,0.00013009,2]
[348813444,1736790667956,-880.8,0.00013009,2]
[348813445,1736790667969,-513.74,0.00013009,2]
[348813446,1736790667978,-500.0,0.00013009,2]
[348813447,1736790667987,-858.44,0.00013009,2]
[348813448,1736790667996,-500.0,0.00013009,2]
[348813449,1736790668005,-414.81126,0.0001301,2]
[348813450,1736790668015,-414.81126,0.0001301,2]
[348813451,1736790668024,-151.0,0.0001301,2]
[348813452,1736790668035,-786.47,0.0001301,2]
[348813453,1736790668045,-500.0,0.0001301,2]
[348813454,1736790668055,-500.0,0.0001301,2]
[348813455,1736790668064,-541.81697975,0.0001301,2]
[348813456,1736790668074,-581.5,0.0001301,2]
[348813457,1736790668084,-500.0,0.0001301,2]
[348813458,1736790668093,-500.0,0.0001301,2]
[348813459,1736790668103,-500.0,0.0001301,2]
[348813460,1736790668115,-559.91413547,0.0001301,2]